Cogmind - Beta 17.1 @@@ ROGUE MODE // 2026.09.15 @ 17:01:38 Player: mischief_2000 Result: Destroyed by H-81 Overseer with Heavy Linear Accelerator Performance ------------- Evolutions (8) 4000 Regions Visited (20) 4000 Robots Destroyed (102) 510 Value Destroyed (2549) 2549 Prototype IDs (44) 880 Alien Tech Used (2) 400 Bonus (2243) 2243 TOTAL SCORE: 14582 Bonus ------- High Alert Combat Kills 20 Follower Combat Kills 123 Entered DSFs 500 Registered with UFD 300 Met Optimus in HQ 500 Met Zhirov 300 MAIN.C Attacked Warlord 500 Cogmind --------- Core Integrity 0/1450 Matter 42/300 Energy 100/100 System Corruption 5% Temperature Cool (2) Movement Flying (40) Location -2/Research Parts ------- > --- POWER (2) -------- (None) > --- PROPULSION (9) --- Nuclear Pulse Array > --- UTILITY (10) ----- Experimental Core Analyzer Improved Hacking Suite > --- WEAPON (2) ------- (None) > --- INVENTORY (5) ---- Gravmag Array Advanced Point Defense System Advanced Hacking Suite Peak State ------------ > --- POWER ------------ Micro Fission Core Heavy Antimatter Reactor > --- PROPULSION ------- Antigrav System Gyrokinetic Inverter Linear Gravjet Improved Gyrokinetic Inverter Improved Gyrokinetic Inverter Improved Gyrokinetic Inverter Improved Gyrokinetic Inverter > --- UTILITY ---------- Improved Heat Sink Advanced Heat Sink Experimental Core Analyzer Improved Propulsion Shielding Improved Heavy Armor Plating Improved Hardlight Generator Improved Hardlight Generator Makeshift Hacking Suite Advanced Hacking Suite > --- WEAPON ----------- Molecular Deconstructor > --- INVENTORY -------- Cloaking Device Advanced Point Defense System Advanced Hacking Suite Hypervelocity Coil Gun [Rating: 131] Favorites ----------- Power Improved Ion Engine Engine Improved Ion Engine Power Core Micro Fission Core Reactor Fusion Reactor Propulsion Light Treads Treads Light Treads Leg Overtuned Titanium Leg Hover Unit Improved Gyrokinetic Inverter Flight Unit VTOL Module Utility High-capacity Storage Unit Device Disposable Heat Sink Storage High-capacity Storage Unit Processor Experimental Core Analyzer Hackware Makeshift Hacking Suite Protection Improved Propulsion Shielding Weapon Improved Medium Laser Energy Gun Improved Medium Laser Energy Cannon Subdweller Beam Cannon Ballistic Gun Assault Rifle Ballistic Cannon Gauss Cannon Launcher Advanced Concussive RPG Special Weapon Molecular Deconstructor Impact Weapon Heavy Mace Slashing Weapon Companion Sword Piercing Weapon Force Lance Build | -11 -10 -10 -9 -9 -6 -6 -5 -5 -5 -5 -5 -5 -4 -4 -4 -4 -4 -3 -3 -2 ------- Run | Yrd Mat Sub Rec Scr Fac DSF Fac Was Fac Upp Upp War Pro Fac Upp Upp Zhi Pro Res Res Slots Evolved 16 | . . . . . 8 . 2 . . . . . . 2 . . . . 2 2 Power 1 | . . . . . 1 . . . . . . . . . . . . . . . Propulsion 7 | . . . . . 3 . . . . . . . . 2 . . . . . 2 Utility 8 | . . . . . 4 . 2 . . . . . . . . . . . 2 . Weapon . | . . . . . . . . . . . . . . . . . . . . . Parts Attached 193 | 9 5 3 4 12 11 18 1 2 15 4 5 22 8 32 8 8 3 . 13 10 Power 31 | 1 . . 1 2 1 3 . . 5 1 . 6 1 5 1 1 1 . 1 1 Engine 12 | 1 . . 1 1 . 1 . . 2 . . 3 . 2 1 . . . . . Core 14 | . . . . 1 1 2 . . 3 1 . 2 1 2 . 1 . . . . Reactor 5 | . . . . . . . . . . . . 1 . 1 . . 1 . 1 1 Propulsion 53 | 4 . . 2 4 3 5 . . 3 2 1 6 5 12 . 1 . . 2 3 Treads 5 | 2 . . 2 1 . . . . . . . . . . . . . . . . Leg 8 | 2 . . . 3 3 . . . . . . . . . . . . . . . Wheel . | . . . . . . . . . . . . . . . . . . . . . Hover 20 | . . . . . . 5 . . 2 . . 3 . 5 . 1 . . 2 2 Flight 20 | . . . . . . . . . 1 2 1 3 5 7 . . . . . 1 Utility 77 | 2 3 . 1 2 5 8 1 1 6 . 3 8 1 12 7 4 2 . 8 3 Device 37 | 1 1 . . 1 1 1 1 1 4 . 2 . . 7 6 3 1 . 5 2 Storage 6 | 1 2 . . . . . . . . . . 2 . . . . . . . 1 Processor 7 | . . . . . . . . . 1 . 1 4 . 1 . . . . . . Hackware 11 | . . . . . 2 2 . . 1 . . 2 . . . . 1 . 3 . Protection 16 | . . . 1 1 2 5 . . . . . . 1 4 1 1 . . . . Artifact . | . . . . . . . . . . . . . . . . . . . . . Weapon 32 | 2 2 3 . 4 2 2 . 1 1 1 1 2 1 3 . 2 . . 2 3 Energy Gun 9 | 1 2 . . 2 1 1 . . . . . 1 . . . 1 . . . . Energy Cannon 3 | . . 1 . . . . . . . . . . . . . . . . . 2 Ballistic Gun 5 | 1 . . . 1 1 . . . . . . . . . . . . . 2 . Ballistic Cannon 1 | . . . . . . . . . 1 . . . . . . . . . . . Launcher 3 | . . 1 . . . 1 . . . . . . . 1 . . . . . . Special Weapon 5 | . . 1 . . . . . 1 . . 1 . . . . 1 . . . 1 Impact Weapon 1 | . . . . . . . . . . . . . 1 . . . . . . . Slashing Weapon 4 | . . . . 1 . . . . . 1 . 1 . 1 . . . . . . Piercing Weapon 1 | . . . . . . . . . . . . . . 1 . . . . . . Special Melee Weapon . | . . . . . . . . . . . . . . . . . . . . . Unidentified Prototypes 19 | . 1 . . 3 . . . 1 2 . . 6 . 1 . 1 2 . 1 1 Corrupted Parts 1 | . . . . . . . . . . . . . . . . . . . 1 . System Corruption 4 | . . . . . . . . . . . . . . . . . . . 4 . Parts Lost 91 | . . . . 4 . 2 . 4 8 7 9 2 5 13 5 1 . . 15 16 Power 19 | . . . . 1 . 1 . 1 3 2 1 1 . 3 1 1 . . 3 1 Propulsion 31 | . . . . 2 . . . . 2 2 4 1 5 6 . . . . 2 7 Utility 30 | . . . . . . 1 . 3 3 2 3 . . 4 2 . . . 7 5 Weapon 11 | . . . . 1 . . . . . 1 1 . . . 2 . . . 3 3 Highest Loss Streak 12 | . . . . 4 . 1 . 3 4 7 7 2 2 8 3 1 . . 11 12 To Critical Strikes 1 | . . . . 1 . . . . . . . . . . . . . . . . Average Backups 11 | 5 17 20 20 18 18 16 13 7 4 5 4 5 5 3 3 3 5 4 3 3 Power . | . 1 1 1 1 . . . . . . . . . 1 . . . . . . Propulsion 1 | 3 4 4 4 2 . . 1 . . . . . . . . . . . . 1 Utility 3 | . 3 4 4 4 7 6 4 2 1 2 1 1 1 . 1 2 3 2 2 2 Weapon 4 | . 9 11 11 6 4 3 2 . . . . 1 2 2 1 1 1 1 . . Tool/Special . | . . . . . . . . . . . . . . . . . . . . . Unused Backups 37 | . 1 1 . 12 2 3 1 7 . . 1 2 2 1 1 . . 1 . 2 Power 3 | . . . . 1 . . . . . . . . . 1 1 . . . . . Propulsion 6 | . . . . 3 1 . . 1 . . . . . . . . . . . 1 Utility 12 | . . . . 3 1 1 . 3 . . 1 . 1 . . . . 1 . 1 Weapon 11 | . 1 1 . 5 . 2 . 1 . . . . 1 . . . . . . . Tool/Special 5 | . . . . . . . 1 2 . . . 2 . . . . . . . . Average Slot Usage (%) 86 | . 100 100 99 99 92 90 97 78 73 74 58 62 85 76 81 76 79 84 78 35 Engine 7 | . 14 14 14 13 6 2 . . 1 . . 8 . 1 . 3 . . . . Core 2 | . . . . . 4 8 11 6 3 9 4 1 7 3 4 . 5 5 3 . Reactor 1 | . . . . . . . . . . . . . 1 2 5 5 5 5 3 . Treads 13 | . 28 28 28 27 . . . . . . . . . . . . . . . . Leg 1 | . . . . . 31 19 . . . . . . . . . . . . . . Hover 10 | . . . . . . 13 29 29 27 21 15 13 1 12 26 26 31 31 29 18 Flight 1 | . . . . . . . . . . . 4 2 19 11 . . . . . . Device 11 | . 14 14 13 13 12 3 20 16 12 8 4 . . 7 15 20 19 15 12 . Storage 7 | . 14 14 14 14 6 6 5 1 . . . 1 1 . . . . . . . Processor 3 | . . . . . . . . . 1 5 5 15 23 15 5 5 5 5 4 4 Hackware 4 | . . . . . 5 4 11 11 16 17 11 9 17 6 2 . 1 5 11 7 Protection 3 | . . . . . 11 16 5 1 . . . . 4 4 12 10 10 10 6 . Energy Gun 8 | . 24 21 14 13 2 5 5 1 . . . . . . . 1 . . . . Energy Cannon 3 | . . 5 14 7 . . . . . . . . . . . . . . . 1 Slashing Weapon 4 | . . . . 6 6 6 5 5 5 7 5 5 6 5 7 . . . . . Peak Build Rating 131 | 7 14 14 14 32 64 83 93 92 74 68 60 99 90 102 108 116 116 115 131 91 Average Rating 48 | 5 12 13 13 18 58 73 92 72 60 61 48 55 81 84 101 97 101 114 112 58 On Entrance 60 | . 7 14 13 14 26 64 83 92 58 68 44 24 88 76 102 89 116 115 115 68 Avg Prop Armor Cover (%) 5 | . . . . 8 3 3 . 11 6 2 7 5 . 6 1 . . . 5 11 Naked Turns . | . . . . . . . . . . . . . . . . . . . . . Heaviest Build 100 | 15 52 57 59 61 70 100 53 53 37 37 14 44 39 45 60 52 49 49 64 34 Greatest Support 97 | 40 40 40 40 40 97 96 55 55 55 44 33 53 31 59 59 70 70 70 79 71 Greatest Overweight (x) 17 | . 1 1 1 3 1 4 . . 3 1 4 2 2 1 17 . . . . 1 Average Overweight (x) . | . . 1 1 1 . . . . . . . . . . . . . . . . Largest Inventory Capacity 20 | 8 20 20 20 20 20 20 15 15 5 5 5 15 15 5 5 5 5 5 5 5 Average Capacity 13 | 7 19 20 20 20 20 18 15 7 5 5 5 7 6 5 5 5 5 5 5 5 Most Carried 20 | 8 20 20 20 20 20 20 15 14 5 5 5 15 15 5 5 5 5 5 5 4 Average Carried 12 | 5 17 19 19 18 19 18 14 7 4 5 4 6 5 4 4 4 4 4 4 4 Final Capacity 20 | 8 20 20 20 20 20 15 15 5 5 5 5 15 5 5 5 5 5 5 5 5 Final Carried 20 | 8 20 20 20 20 20 15 14 5 5 5 5 15 5 5 5 5 5 5 4 4 Class Distribution -------------------- 63% | Mutant 21% | Hacker-Mutant 7% | Scavenger-Mutant 3% | Hacker-Sprinter Dominant Class ---------------- Mutant | -10/Materials Mutant | -10/Subcaves Mutant | -9/Recycling Mutant | -9/Scraptown Scavenger-Mutant | -6/Factory Scavenger-Mutant | -6/DSF Scavenger-Mutant | -5/Factory Scavenger-Mutant | -5/Waste Hacker-Mutant | -5/Factory Hacker-Mutant | -5/Upper Caves Hacker-Mutant | -5/Upper Caves Mutant | -5/Warlord Hacker-Sprinter | -4/Proximity Caves Hacker-Gladiator | -4/Factory Hacker-Mutant | -4/Upper Caves Mutant | -4/Upper Caves Mutant | -4/Zhirov Mutant | -3/Proximity Caves Hacker-Mutant | -3/Research Hacker-Mutant | -2/Research Resources | -11 -10 -10 -9 -9 -6 -6 -5 -5 -5 -5 -5 -5 -4 -4 -4 -4 -4 -3 -3 -2 ----------- Run | Yrd Mat Sub Rec Scr Fac DSF Fac Was Fac Upp Upp War Pro Fac Upp Upp Zhi Pro Res Res Matter Collected 2940 | 323 104 15 73 151 . 374 . . 131 56 32 720 90 315 130 123 . 70 219 14 Remotely . | . . . . . . . . . . . . . . . . . . . . . Salvage Created 4951 | 157 490 118 298 259 . 237 . . 620 220 . . 99 1199 513 31 . 7 573 130 Parts 230 | 14 37 10 17 2 . 12 . . 22 12 . . 9 54 11 5 . . 18 7 Haulers Intercepted 6 | . 1 . . . . 1 . . 1 . . . . 3 . . . . . . Recyclers Shooed 6 | . 1 . 3 . . . . . . . . . . . . . . . 2 . Parts Field Recycled . | . . . . . . . . . . . . . . . . . . . . . Retrieved Matter . | . . . . . . . . . . . . . . . . . . . . . Parts Self-Destructed 38 | . . 14 . 1 . . . . . 7 . . 6 . 8 2 . . . . Prevented . | . . . . . . . . . . . . . . . . . . . . . Parts Restored . | . . . . . . . . . . . . . . . . . . . . . Kills | -11 -10 -10 -9 -9 -6 -6 -5 -5 -5 -5 -5 -5 -4 -4 -4 -4 -4 -3 -3 -2 ------- Run | Yrd Mat Sub Rec Scr Fac DSF Fac Was Fac Upp Upp War Pro Fac Upp Upp Zhi Pro Res Res Combat Hostiles Destroyed 62 | . 9 3 2 4 . 2 . . 6 5 . . 4 16 3 1 . 1 4 2 Melee 34 | . . . . 4 . 2 . . 5 5 . . 4 12 2 . . . . . Guns 14 | . 9 1 1 . . . . . . . . . . . . . . . 3 . Cannons 3 | . . . 1 . . . . . . . . . . . . . . . . 2 AOE 4 | . . 2 . . . . . . 1 . . . . 1 . . . . . . Classes Destroyed 19 | 2 4 3 1 2 . 2 . . 1 . . . . 2 1 . . 1 . . Worker 5 | . 1 . . . . . . . 3 . . . . . . . . . 1 . Builder 1 | . . . 1 . . . . . . . . . . . . . . . . . Tunneler 9 | 4 . . . . . . . . 3 . . . . 2 . . . . . . Hauler 6 | . 1 . . . . 1 . . 1 . . . . 3 . . . . . . Recycler 14 | 1 3 . 3 . . . . . 1 . . . . 3 . . . . 3 . Minesweeper 1 | . . . . . . . . . . . . . . . 1 . . . . . Drone 1 | . . . . . . . . . . . . . . . . . . 1 . . Turret 1 | . . 1 . . . . . . . . . . . . . . . . . . Watcher 3 | . 2 . . . . . . . . . . . . 1 . . . . . . Swarmer 40 | . 9 2 . . . . . . 4 5 . . 4 12 2 . . . 2 . Cutter 2 | . . . . . . . . . . . . . . 2 . . . . . . Grunt 2 | . . . . . . . . . 2 . . . . . . . . . . . Sentry 6 | . . 1 2 . . . . . . . . . . 1 1 . . . 1 . Specialist 1 | . . . . . . 1 . . . . . . . . . . . . . . Hunter 1 | . . . . . . 1 . . . . . . . . . . . . . . Programmer 5 | . . . . . . . . . . . . . . 1 . 1 . . 1 2 Cobbler 1 | . . 1 . . . . . . . . . . . . . . . . . . Ranger 1 | . . . . 1 . . . . . . . . . . . . . . . . Scrapper 3 | . . . . 3 . . . . . . . . . . . . . . . . Decomposer 4 | . . . . . . . . . . 4 . . . . . . . . . . Best Kill Streak 5 | 4 4 3 3 3 . 1 . . 5 5 . . 4 5 2 1 . 1 3 2 Combat Bots Only 5 | . 3 2 1 3 . 1 . . 4 5 . . 4 5 2 1 . 1 2 2 Max Kills in Single Turn 2 | 1 2 2 1 1 . 1 . . 1 1 . . 2 2 1 1 . 1 1 1 Gunslinging 1 | . 1 . . . . . . . . . . . . . . . . . . . Exploded 2 | . . 2 . . . . . . 1 . . . . 1 . . . . . . Melee 2 | . . . . 1 . 1 . . 1 1 . . 2 2 1 . . . . . Uniques/NPCs Destroyed . | . . . . . . . . . . . . . . . . . . . . . Combat | -11 -10 -10 -9 -9 -6 -6 -5 -5 -5 -5 -5 -5 -4 -4 -4 -4 -4 -3 -3 -2 -------- Run | Yrd Mat Sub Rec Scr Fac DSF Fac Was Fac Upp Upp War Pro Fac Upp Upp Zhi Pro Res Res Hostile Shots Fired 1053 | . 42 24 8 65 . 19 . 3 91 60 45 12 55 152 45 6 . . 240 186 Missed 395 | . 13 17 2 4 . 4 . . 36 13 10 6 23 62 22 2 . . 104 77 Hits 658 | . 29 7 6 61 . 15 . 3 55 47 35 6 32 90 23 4 . . 136 109 Melee 8 | . . . . 3 . . . 3 . . . . . 2 . . . . . . Projectile 650 | . 29 7 6 58 . 15 . . 55 47 35 6 32 88 23 4 . . 136 109 AOE 6 | . . . . . . . . . . . . 3 . 3 . . . . . . Critical Strikes 31 | . . . . 8 . 1 . 1 1 1 . 1 1 7 1 . . . 5 4 Damage Taken 13631 | . 247 52 87 1031 . 595 . 135 887 722 458 246 475 1742 1335 79 . . 2864 2676 Core 4142 | . 68 . . 163 . 10 . 26 318 266 124 64 93 595 238 . . . 718 1459 Absorbed by Shields 384 | . . . . . . . . . . . . . . . . . . . 384 . Redirected to Shielding 261 | . . . . . . . . . . . . . . 81 77 . . . 103 . Regen/Repaired (Parts) 474 | . . . . . . . . . . . . 22 . 8 . . . . 444 . Core Remaining (%) 46 | 100 . . . 7 . 98 . . . . . . 10 . . . . 27 38 . Volleys Fired 165 | 11 32 11 16 10 1 11 . . 1 . 1 2 . 1 4 3 . 4 43 14 Largest 2 | 2 2 2 2 1 1 1 . . 1 . 1 1 . 1 1 1 . 1 1 1 Hottest 136 | 70 112 136 136 56 23 65 . . 40 . 20 40 . . 40 . . . 35 120 Shots Fired 221 | 22 64 19 21 10 1 11 . . 1 . 1 2 . 1 4 3 . 4 43 14 Gun 167 | 22 64 13 16 10 1 11 . . . . . 2 . . 4 . . . 24 . Cannon 22 | . . 3 5 . . . . . 1 . . . . . . . . . . 13 Launcher 2 | . . 1 . . . . . . . . . . . 1 . . . . . . Special 30 | . . 2 . . . . . . . . 1 . . . . 3 . 4 19 1 Kinetic 51 | 11 10 . . 4 1 . . . 1 . . . . . . . . . 24 . Thermal 124 | 11 54 18 21 6 . . . . . . 1 . . . . . . . . 13 Explosive 2 | . . 1 . . . . . . . . . . . 1 . . . . . . Electromagnetic 11 | . . . . . . 11 . . . . . . . . . . . . . . Entropic 6 | . . . . . . . . . . . . 2 . . 4 . . . . . Robot Hit Streak 10 | 8 10 6 7 2 . 3 . . . . . . . . . 3 . 1 6 9 Robot Miss Streak 8 | 1 5 2 3 3 1 3 . . . . . . . 1 . . . 1 8 . Penetration Max 1 | . . . . . . . . . . . . . . . . . . . 1 . Secondary Targets 5 | . 5 . . . . . . . . . . . . . . . . . . . Max Gunslinging Chain 1 | . 1 . . . . . . . . . . . . . . . . . . . Shots Hit Robots 232 | 13 34 11 13 14 . 14 1 . 25 10 . . 5 46 17 3 . 1 17 8 Core Hits 116 | 6 18 7 7 6 . 9 . . 10 8 . . 3 22 9 . . . 9 2 Critical Kills 3 | . . . . . . . . . . . . . . . . . . . 3 . Critical Parts Destroyed 2 | . . . . . . . . . . . . . . . . . . . 2 . Critical Strikes 10 | 1 . . 1 1 . . . . 2 . . . . . . . . . 5 . Burn 3 | 1 . . 1 1 . . . . . . . . . . . . . . . . Destroy 5 | . . . . . . . . . . . . . . . . . . . 5 . Melee Attacks 228 | . . . . 19 8 8 1 . 37 23 5 9 5 71 42 . . . . . Impact . | . . . . . . . . . . . . . . . . . . . . . Slashing 223 | . . . . 19 8 8 1 . 37 23 5 9 5 66 42 . . . . . Piercing 5 | . . . . . . . . . . . . . . 5 . . . . . . Sneak Attacks 28 | . . . . . . 2 . . 10 4 . . . 11 1 . . . . . Combat Hostiles 2 | . . . . . . . . . . . . . . 2 . . . . . . Follow-up Attacks 11 | . . . . 1 . . . . . . . . 1 5 4 . . . . . Damage Inflicted 8383 | 176 600 276 239 405 . 457 39 . 1373 532 . . 229 2303 1050 . . . 357 347 Guns 1580 | 176 600 137 184 50 . 106 . . . . . . . . . . . . 327 . Cannons 457 | . . 55 55 . . . . . . . . . . . . . . . . 347 Explosions 147 | . . 84 . . . . . . . . . . . 63 . . . . . . Melee 6169 | . . . . 355 . 351 39 . 1373 532 . . 229 2240 1050 . . . . . Ramming 30 | . . . . . . . . . . . . . . . . . . . 30 . Kinetic 494 | 88 65 . . 14 . . . . . . . . . . . . . . 327 . Thermal 1437 | 88 535 192 239 36 . . . . . . . . . . . . . . . 347 Explosive 147 | . . 84 . . . . . . . . . . . 63 . . . . . . Electromagnetic 106 | . . . . . . 106 . . . . . . . . . . . . . . Impact . | . . . . . . . . . . . . . . . . . . . . . Slashing 5887 | . . . . 355 . 351 39 . 1373 532 . . 229 1958 1050 . . . . . Piercing 282 | . . . . . . . . . . . . . . 282 . . . . . . Highest Corruption 20 | . 1 1 1 1 . . . . 1 1 1 . . 2 16 17 17 17 20 5 Average Corruption 3 | . 1 1 1 1 . . . . 1 1 1 . . 2 2 16 17 17 8 3 Corruption Purged 1 | . . . . . . . . . . . 1 . . . . . . . . . Corruption Blocked . | . . . . . . . . . . . . . . . . . . . . . Effects 89 | . 12 4 2 1 . . . . 2 2 1 . . 5 19 10 3 13 8 7 Message Errors 31 | . 5 1 2 . . . . . 1 1 . . . 3 5 . . 4 4 5 Matter Fused 19 | . 3 1 . . . . . . . . 1 . . 1 5 3 3 2 . . Heat Flow Errors 7 | . 1 . . . . . . . . . . . . . 1 2 . 2 . 1 Energy Discharges 9 | . 2 1 . . . . . . . . . . . . 1 1 . 2 1 1 Parts Rejected 2 | . . . . . . . . . . . . . . . . . . . 2 . Parts Fused 2 | . . . . . . . . . . . . . . . . 1 . 1 . . Data Loss (minor) 10 | . . . . 1 . . . . 1 . . . . 1 5 1 . 1 . . Data Loss (major) 7 | . 1 1 . . . . . . . 1 . . . . 1 2 . 1 . . Misdirections 2 | . . . . . . . . . . . . . . . 1 . . . 1 . Overload Shots . | . . . . . . . . . . . . . . . . . . . . . Overflow Damage 846 | . . 28 . 30 . . . . 234 62 . . 23 221 248 . . . . . Projectiles . | . . . . . . . . . . . . . . . . . . . . . Explosions 28 | . . 28 . . . . . . . . . . . . . . . . . . Melee 818 | . . . . 30 . . . . 234 62 . . 23 221 248 . . . . . Knockbacks . | . . . . . . . . . . . . . . . . . . . . . Impact . | . . . . . . . . . . . . . . . . . . . . . Kinetic . | . . . . . . . . . . . . . . . . . . . . . Secondary . | . . . . . . . . . . . . . . . . . . . . . Self-Inflicted Damage 14 | . . . . . . . . . . . . . . . . . . . 14 . Shots . | . . . . . . . . . . . . . . . . . . . . . Rammed 4 | . . . . . . . . . . . . . . . . . . . 3 1 Targets Rammed 4 | . . . . . . . . . . . . . . . . . . . 3 1 Kicked . | . . . . . . . . . . . . . . . . . . . . . Crushed . | . . . . . . . . . . . . . . . . . . . . . Highest Temperature 479 | 54 258 51 200 157 . 300 . 36 338 304 . 70 194 312 406 237 125 246 376 479 Average Temperature 79 | 23 73 26 93 83 . 130 . 23 170 42 . 26 90 135 64 75 59 38 103 114 Received Heat Transfer 2005 | . . 36 27 637 . 45 . . 63 . 18 . 30 136 63 . . . 180 770 Effects 18 | . . . 3 . . 4 . . 1 2 . . . . 7 . . . 1 . Shutdowns 1 | . . . . . . . . . . . . . . . 1 . . . . . Energy Bleed 1 | . . . . . . . . . . . . . . . . . . . 1 . Interference 14 | . . . 3 . . 3 . . . 2 . . . . 6 . . . . . Matter Decay 1 | . . . . . . 1 . . . . . . . . . . . . . . Damage (minor) 1 | . . . . . . . . . 1 . . . . . . . . . . . Siege Activations . | . . . . . . . . . . . . . . . . . . . . . Martial Activations . | . . . . . . . . . . . . . . . . . . . . . Shielding Activations . | . . . . . . . . . . . . . . . . . . . . . Robots Disrupted 3 | . . . . . . 2 . . . . . . . 1 . . . . . . Combat Hostiles 3 | . . . . . . 2 . . . . . . . 1 . . . . . . Robots Corrupted . | . . . . . . . . . . . . . . . . . . . . . Combat Hostiles . | . . . . . . . . . . . . . . . . . . . . . Parts Fried . | . . . . . . . . . . . . . . . . . . . . . Impact Corruptions . | . . . . . . . . . . . . . . . . . . . . . Robots Melted . | . . . . . . . . . . . . . . . . . . . . . Combat Hostiles . | . . . . . . . . . . . . . . . . . . . . . Parts Melted 6 | 1 2 . 1 2 . . . . . . . . . . . . . . . . Heat Transferred 2923 | 333 1221 370 555 185 . . . . . . . . . . . . . . . 259 Parts Sabotaged . | . . . . . . . . . . . . . . . . . . . . . Parts Stolen . | . . . . . . . . . . . . . . . . . . . . . Parts Stripped . | . . . . . . . . . . . . . . . . . . . . . Power Chain Reactions . | . . . . . . . . . . . . . . . . . . . . . Alert | -11 -10 -10 -9 -9 -6 -6 -5 -5 -5 -5 -5 -5 -4 -4 -4 -4 -4 -3 -3 -2 ------- Run | Yrd Mat Sub Rec Scr Fac DSF Fac Was Fac Upp Upp War Pro Fac Upp Upp Zhi Pro Res Res Maximum Alert Level 2 | . . . . . . . . . . . . . . 1 . . . . 2 1 Low Security (%) 85 | 100 100 . 100 . 100 100 100 100 100 . . . . 72 . . . . 10 96 Level 1 11 | . . . . . . . . . . . . . . 27 . . . . 67 3 Level 2 2 | . . . . . . . . . . . . . . . . . . . 22 . Level 3 . | . . . . . . . . . . . . . . . . . . . . . Level 4 . | . . . . . . . . . . . . . . . . . . . . . Level 5 . | . . . . . . . . . . . . . . . . . . . . . High Security . | . . . . . . . . . . . . . . . . . . . . . Max Security . | . . . . . . . . . . . . . . . . . . . . . Peak Influence 458 | 15 122 . 24 . 24 128 56 9 126 . . . . 319 . . . . 458 256 Initial 354 | . . . 21 . . . 56 9 . . . . . 63 . . . . 354 153 Average 84 | 2 24 . 6 . 1 66 43 1 47 . . . . 170 . . . . 333 138 Influence Increases 3484 | 25 253 80 83 . 31 148 . . 253 110 . . 180 612 310 30 . 170 816 383 Destroy 0b10 Robot/C 1220 | . 180 80 40 . . 100 . . 120 100 . . 80 320 60 20 . . 80 40 Destroy 0b10 Robot/NC 220 | 25 35 . 20 . . 5 . . 40 . . . . 45 25 . . 5 20 . Destroy Leader 186 | . 36 . . . . 20 . . 12 10 . . 10 48 . 10 . . 30 10 Allied During Kill 6 | . . . . . . 6 . . . . . . . . . . . . . . Successful Hack 96 | . . . 20 . 24 . . . 16 . . . . 10 . . . . 26 . Disable Machine 15 | . . . . . . . . . . . . . . 15 . . . . . . Destroy Structure 76 | . 2 . 3 . 7 2 . . 20 . . . . 24 . . . . . 18 Advance Influence 300 | . . . . . . . . . . . . . . . . . . . 300 . Partial Spotted 90 | . . . . . . . . . 15 . . . . 30 . . . . . 45 Lose Combat Pursuer 1275 | . . . . . . 15 . . 30 . . . 90 120 225 . . 165 360 270 Influence Decreases 3238 | 25 253 36 127 . 31 40 82 26 196 157 10 . 80 397 625 30 . 90 622 411 Entered New Map 417 | . . . 23 . . . 52 17 . 22 2 . . 37 117 . . . 26 121 Time Decay 1959 | 25 253 36 104 . 31 . 30 9 121 85 8 . 50 230 481 30 . 90 246 130 Search Patrol Dispatched 200 | . . . . . . . . . . . . . . . . . . . 200 . Lost Part 642 | . . . . . . 20 . . 75 50 . . 30 130 27 . . . 150 160 Lost Ally 20 | . . . . . . 20 . . . . . . . . . . . . . . Squads Dispatched 23 | . . . . . 1 1 . . 3 . . . . 7 . . . . 9 2 Investigation 1 | . . . . . . . . . . . . . . 1 . . . . . . Extermination 6 | . . . . . . . . . 1 . . . . 2 . . . . 2 1 Reinforcement 10 | . . . . . 1 1 . . 2 . . . . 1 . . . . 4 1 Assault . | . . . . . . . . . . . . . . . . . . . . . Garrison 6 | . . . . . . . . . . . . . . 3 . . . . 3 . Intercept . | . . . . . . . . . . . . . . . . . . . . . Searches Triggered 2 | . . . . . . . . . . . . . . . . . . . 2 . Construction Impeded 1 | . . . . . 1 . . . . . . . . . . . . . . . Haulers Reinforced . | . . . . . . . . . . . . . . . . . . . . . Active Scanning Responses . | . . . . . . . . . . . . . . . . . . . . . Cargo Convoy Interrupts . | . . . . . . . . . . . . . . . . . . . . . Stealth | -11 -10 -10 -9 -9 -6 -6 -5 -5 -5 -5 -5 -5 -4 -4 -4 -4 -4 -3 -3 -2 --------- Run | Yrd Mat Sub Rec Scr Fac DSF Fac Was Fac Upp Upp War Pro Fac Upp Upp Zhi Pro Res Res Distress Signals 8 | . . . . . . . . . . . . . . 1 . . . 1 3 3 Communications Jammed . | . . . . . . . . . . . . . . . . . . . . . Distress Signals . | . . . . . . . . . . . . . . . . . . . . . Times Spotted 299 | . 17 4 2 11 . 9 1 6 21 15 3 59 17 29 17 1 . 6 49 32 Peak Tracking Total 19 | . 3 3 1 4 . 3 3 6 5 9 3 13 10 5 2 1 . 8 15 19 Tactical Retreats 42 | . . . . . . 1 . 1 4 4 . . 2 4 12 . . 2 6 6 ECM-based Alert Blocks 20 | . . . . . . . . . 4 16 . . . . . . . . . . Traps | -11 -10 -10 -9 -9 -6 -6 -5 -5 -5 -5 -5 -5 -4 -4 -4 -4 -4 -3 -3 -2 ------- Run | Yrd Mat Sub Rec Scr Fac DSF Fac Was Fac Upp Upp War Pro Fac Upp Upp Zhi Pro Res Res Traps Triggered 5 | . . . . . 2 . 1 . . . . . . . . . . . 1 1 Indirectly . | . . . . . . . . . . . . . . . . . . . . . Trap Hack Attempts . | . . . . . . . . . . . . . . . . . . . . . Triggered . | . . . . . . . . . . . . . . . . . . . . . Disarmed . | . . . . . . . . . . . . . . . . . . . . . Reprogrammed . | . . . . . . . . . . . . . . . . . . . . . Reused 4 | . . . . . . . . . . . . . . . 4 . . . . . Traps Extracted 1 | . . . . . . . . . . . . . . . 1 . . . . . Installed 12 | . . 1 . . . . . . . . . . . . 11 . . . . . Triggered 4 | . . . . . . . . . . . . . . . 4 . . . . . Most Traps Carried 6 | . . . . . . . . . . . . . . . 6 . . . . . Machines | -11 -10 -10 -9 -9 -6 -6 -5 -5 -5 -5 -5 -5 -4 -4 -4 -4 -4 -3 -3 -2 ---------- Run | Yrd Mat Sub Rec Scr Fac DSF Fac Was Fac Upp Upp War Pro Fac Upp Upp Zhi Pro Res Res Machines Disabled 9 | . . 1 . 3 . . . . . . 2 2 . 1 . . . . . . Max in Single Turn 1 | . . 1 . 1 . . . . . . 1 1 . 1 . . . . . . Machines Repaired . | . . . . . . . . . . . . . . . . . . . . . Machines Dismantled . | . . . . . . . . . . . . . . . . . . . . . Machines Sabotaged . | . . . . . . . . . . . . . . . . . . . . . Overloaded Fab Kills . | . . . . . . . . . . . . . . . . . . . . . Hacking | -11 -10 -10 -9 -9 -6 -6 -5 -5 -5 -5 -5 -5 -4 -4 -4 -4 -4 -3 -3 -2 --------- Run | Yrd Mat Sub Rec Scr Fac DSF Fac Was Fac Upp Upp War Pro Fac Upp Upp Zhi Pro Res Res Machines Accessed 31 | . 3 . 3 4 3 . 1 . 1 . . 2 . 6 . . 4 . 4 . Terminals 12 | . 2 . 2 . 1 . . . 1 . . . . 3 . . . . 3 . Fabricators 1 | . . . . . . . 1 . . . . . . . . . . . . . Repair Stations 3 | . . . . . . . . . . . . . . 2 . . . . 1 . Recycling Units 4 | . 1 . 1 . 1 . . . . . . . . 1 . . . . . . Scanalyzers 1 | . . . . . 1 . . . . . . . . . . . . . . . Garrison Access . | . . . . . . . . . . . . . . . . . . . . . Total Hacks 83 | . 8 . 10 8 5 . 2 . 2 . . 5 . 14 . . 17 . 12 . Successful 59 | . 3 . 5 8 4 . 1 . 1 . . 5 . 7 . . 17 . 8 . Failed 24 | . 5 . 5 . 1 . 1 . 1 . . . . 7 . . . . 4 . Catastrophic 2 | . . . . . . . . . . . . . . 2 . . . . . . Database Lockouts . | . . . . . . . . . . . . . . . . . . . . . Manual 17 | . 5 . 2 . 1 . . . 2 . 1 . . 5 . . . . 1 . Terminals 37 | . 7 . 7 . 1 . . . 2 . . . . 10 . . . . 10 . Fabricators 2 | . . . . . . . 2 . . . . . . . . . . . . . Repair Stations 5 | . . . . . . . . . . . . . . 3 . . . . 2 . Recycling Units 7 | . 1 . 3 . 2 . . . . . . . . 1 . . . . . . Scanalyzers 2 | . . . . . 2 . . . . . . . . . . . . . . . Garrison Access . | . . . . . . . . . . . . . . . . . . . . . Terminal Hacks 45 | . 2 . 2 8 1 . . . 1 . . 5 . 3 . . 17 . 6 . Record 11 | . . . . 6 . . . . . . . . . . . . 5 . . . Part Schematic 6 | . 1 . . . . . . . . . . . . . . . 4 . 1 . Robot Analysis 4 | . . . . . . . . . . . . . . . . . 4 . . . Prototype ID Bank 10 | . 1 . 1 . . . . . . . . 4 . . . . 4 . . . Open Door 2 | . . . . 1 . . . . . . . 1 . . . . . . . . Open DSF 1 | . . . . . 1 . . . . . . . . . . . . . . . Level Access Points 2 | . . . 1 . . . . . . . . . . . . . . . 1 . Branch Access Points 3 | . . . . . . . . . 1 . . . . 1 . . . . 1 . Emergency Access Points 1 | . . . . . . . . . . . . . . . . . . . 1 . Terminal Index 1 | . . . . . . . . . . . . . . 1 . . . . . . Zone Layout 3 | . . . . . . . . . . . . . . 1 . . . . 2 . Proto ID Catalog 1 | . . . . 1 . . . . . . . . . . . . . . . . Fabricator Hacks 1 | . . . . . . . 1 . . . . . . . . . . . . . Network Status 1 | . . . . . . . 1 . . . . . . . . . . . . . Repair Station Hacks 3 | . . . . . . . . . . . . . . 1 . . . . 2 . Scan Component 1 | . . . . . . . . . . . . . . . . . . . 1 . Repair 1 | . . . . . . . . . . . . . . . . . . . 1 . Refit 1 | . . . . . . . . . . . . . . 1 . . . . . . Recycling Unit Hacks 4 | . 1 . 1 . 1 . . . . . . . . 1 . . . . . . Report Inventory 1 | . 1 . . . . . . . . . . . . . . . . . . . Retrieve Components 3 | . . . 1 . 1 . . . . . . . . 1 . . . . . . Scanalyzer 1 | . . . . . 1 . . . . . . . . . . . . . . . Insert Component 1 | . . . . . 1 . . . . . . . . . . . . . . . Garrison Access Hacks . | . . . . . . . . . . . . . . . . . . . . . Unauthorized Hacks 4 | . . . 2 . . . . . . . . . . 2 . . . . . . Terminals 3 | . . . 2 . . . . . . . . . . 1 . . . . . . Botnet 3 | . . . 2 . . . . . . . . . . 1 . . . . . . Fabricators . | . . . . . . . . . . . . . . . . . . . . . Repair Stations 1 | . . . . . . . . . . . . . . 1 . . . . . . Patch 1 | . . . . . . . . . . . . . . 1 . . . . . . Recycling Units . | . . . . . . . . . . . . . . . . . . . . . Scanalyzers . | . . . . . . . . . . . . . . . . . . . . . Garrison Access . | . . . . . . . . . . . . . . . . . . . . . Data Cores Recovered . | . . . . . . . . . . . . . . . . . . . . . Used . | . . . . . . . . . . . . . . . . . . . . . Hacking Detections 13 | . 2 . 3 . 1 . 1 . 1 . . . . 3 . . . . 2 . Full Trace Events 1 | . 1 . . . . . . . . . . . . . . . . . . . Feedback Events 1 | . 1 . . . . . . . . . . . . . . . . . . . Corruption 1 | . 1 . . . . . . . . . . . . . . . . . . . Feedback Blocked . | . . . . . . . . . . . . . . . . . . . . . Robot Schematics Acquired . | . . . . . . . . . . . . . . . . . . . . . Robots Built . | . . . . . . . . . . . . . . . . . . . . . Authchips . | . . . . . . . . . . . . . . . . . . . . . Time . | . . . . . . . . . . . . . . . . . . . . . Total Robot Build Rating . | . . . . . . . . . . . . . . . . . . . . . Part Schematics Acquired 6 | . 1 . . . . . . . . . . . . . . . 4 . 1 . Parts Built . | . . . . . . . . . . . . . . . . . . . . . Authchips . | . . . . . . . . . . . . . . . . . . . . . Time . | . . . . . . . . . . . . . . . . . . . . . Total Part Build Rating . | . . . . . . . . . . . . . . . . . . . . . Part Studies Acquired . | . . . . . . . . . . . . . . . . . . . . . Parts Repaired 1 | . . . . . . . . . . . . . . . . . . . 1 . Time 16 | . . . . . . . . . . . . . . . . . . . 16 . Parts Recycled . | . . . . . . . . . . . . . . . . . . . . . Recycled Matter . | . . . . . . . . . . . . . . . . . . . . . Retrieved Matter . | . . . . . . . . . . . . . . . . . . . . . Retrieved Components 11 | . . . 5 . 3 . . . . . . . . 3 . . . . . . Parts Scanalyzed . | . . . . . . . . . . . . . . . . . . . . . Part Schematics Acquired . | . . . . . . . . . . . . . . . . . . . . . Parts Damaged . | . . . . . . . . . . . . . . . . . . . . . Bothacking | -11 -10 -10 -9 -9 -6 -6 -5 -5 -5 -5 -5 -5 -4 -4 -4 -4 -4 -3 -3 -2 ------------ Run | Yrd Mat Sub Rec Scr Fac DSF Fac Was Fac Upp Upp War Pro Fac Upp Upp Zhi Pro Res Res Used RIF Installer . | . . . . . . . . . . . . . . . . . . . . . Robots Hacked 1 | . . . . . . . . . . . . . . . . . . . . 1 Non-combat . | . . . . . . . . . . . . . . . . . . . . . Combat 1 | . . . . . . . . . . . . . . . . . . . . 1 Robot Hacks Applied 1 | . . . . . . . . . . . . . . . . . . . . 1 parse_system 1 | . . . . . . . . . . . . . . . . . . . . 1 Relay Couplers Released . | . . . . . . . . . . . . . . . . . . . . . Fabnet Peak Effective % . | . . . . . . . . . . . . . . . . . . . . . Robots Rewired 1 | . . . . . . 1 . . . . . . . . . . . . . . Allies Hacked . | . . . . . . . . . . . . . . . . . . . . . Hacks Repelled . | . . . . . . . . . . . . . . . . . . . . . Allies | -11 -10 -10 -9 -9 -6 -6 -5 -5 -5 -5 -5 -5 -4 -4 -4 -4 -4 -3 -3 -2 -------- Run | Yrd Mat Sub Rec Scr Fac DSF Fac Was Fac Upp Upp War Pro Fac Upp Upp Zhi Pro Res Res Total Allies 1 | . . . . . . 1 . . . . . . . . . . . . . . Largest Group 1 | . . . . . . 1 . . . . . . . . . . . . . . Highest-Rated Group 90 | . . . . . . 90 . . . . . . . . . . . . . . Highest-Rated Ally 90 | . . . . . . 90 . . . . . . . . . . . . . . Total Orders 4 | . . . . . . . 4 . . . . . . . . . . . . . EXPLORE 2 | . . . . . . . 2 . . . . . . . . . . . . . RETURN 2 | . . . . . . . 2 . . . . . . . . . . . . . Ally Attacks 9 | . . . . . . 9 . . . . . . . . . . . . . . Total Damage 275 | . . . . . . 275 . . . . . . . . . . . . . . Kills 3 | . . . . . . 3 . . . . . . . . . . . . . . Allies Corrupted . | . . . . . . . . . . . . . . . . . . . . . Allies Melted 14 | . . . . 14 . . . . . . . . . . . . . . . . Intel | -11 -10 -10 -9 -9 -6 -6 -5 -5 -5 -5 -5 -5 -4 -4 -4 -4 -4 -3 -3 -2 ------- Run | Yrd Mat Sub Rec Scr Fac DSF Fac Was Fac Upp Upp War Pro Fac Upp Upp Zhi Pro Res Res Active Infowar (turns) 3106 | 23 351 . . 1 452 78 68 136 433 313 . . . 247 . 242 87 273 402 . Sensors 4 | . . . . . . . . . 4 . . . . . . . . . . . IFF 902 | . . . . . 415 76 68 136 207 . . . . . . . . . . . Terrain 647 | . . . . . . . . . 203 . . . . 141 . 239 64 . . . Seismic 1134 | 23 351 . . . 452 2 65 83 . . . . . 158 . . . . . . Cloaking 1001 | . . . . . . . . . . . . . . . . 242 84 273 402 . Jamming 597 | . . . . . . . . . 195 313 . . . 89 . . . . . . ECM 375 | . . . . 1 . . . . 85 289 . . . . . . . . . . Robot Analysis Total 4 | . . . . . . . . . . . . . . . . . 4 . . . Derelict Logs Recovered 8 | . . . . 1 . . . . . 2 2 . 2 . 1 . . . . . Drone Launches 1 | . . . . . . . 1 . . . . . . . . . . . . . Drone Recoveries 1 | . . . . . . . 1 . . . . . . . . . . . . . Exploration | -11 -10 -10 -9 -9 -6 -6 -5 -5 -5 -5 -5 -5 -4 -4 -4 -4 -4 -3 -3 -2 ------------- Run | Yrd Mat Sub Rec Scr Fac DSF Fac Was Fac Upp Upp War Pro Fac Upp Upp Zhi Pro Res Res Turns Passed 12396 | 156 1227 609 392 3644 454 285 68 136 433 382 273 962 145 492 1306 271 87 273 539 262 Spaces Moved 9514 | 74 468 232 143 1457 333 185 97 166 440 480 329 1009 402 547 1070 456 148 500 627 351 Core 55 | 7 . . . . . . . . 3 . 20 . . 4 21 . . . . . Treads 2337 | 42 468 232 143 1452 . . . . . . . . . . . . . . . . Legs 430 | 25 . . . 5 333 67 . . . . . . . . . . . . . . Wheels . | . . . . . . . . . . . . . . . . . . . . . Hover 5750 | . . . . . . 118 97 166 437 478 309 849 5 213 1049 456 148 500 627 298 Flight 942 | . . . . . . . . . . 2 . 160 397 330 . . . . . 53 Fastest Speed 17 | 50 160 240 240 180 102 54 54 54 54 35 62 32 23 17 54 48 48 48 40 40 Average Speed 104 | 136 223 240 240 240 117 95 54 60 66 62 74 71 28 39 70 52 48 48 48 59 Slowest Speed 900 | 160 240 240 240 400 183 256 54 70 200 102 250 155 206 110 900 54 48 48 62 111 Overloaded Moves . | . . . . . . . . . . . . . . . . . . . . . Propulsion Burnouts . | . . . . . . . . . . . . . . . . . . . . . Robots Hopped 4 | . . . . . . . . . . . . . 1 . . . . . . 3 Potential Cave-ins 8 | . . . . . . . . . . . . 3 . . 5 . . . . . Cave-ins Triggered 2 | . . . . . . . . . . . . . . . 2 . . . . . Teleports 1 | . . . . . . . . . . . . . . . . . . . 1 . Exploration Rate (%) 46 | 4 73 16 27 86 12 81 6 74 18 60 57 85 63 17 76 63 60 66 24 17 Regions Visited 20 Branch Regions 11 Pre-discovered Areas 5 | . . . . . . . . . . . 1 . 1 . . . 3 . . . Known Exits Taken 5 | . . . . 1 1 . . . 1 . . . . 1 . . . . 1 . Unknown Exits Taken 12 | 1 1 1 1 . . . . . . 1 1 1 1 . 1 1 1 1 . . Scrap Searched 16 | . . . . 5 . . . . . . 2 . 1 . 2 3 . 3 . . Spaces Dug 65 | . . . . . 7 . . . 10 5 4 5 . 8 20 . . . . 6 Terrain Destroyed 78 | . . 3 2 . 7 . . . 10 5 4 5 . 14 22 . . . . 6 Melee 56 | . . . . . 7 . . . 9 5 4 5 . 8 18 . . . . . Projectile 13 | . . . 2 . . . . . 1 . . . . . 4 . . . . 6 AOE 9 | . . 3 . . . . . . . . . . . 6 . . . . . . Terrain Rammed . | . . . . . . . . . . . . . . . . . . . . . Walls Destroyed . | . . . . . . . . . . . . . . . . . . . . . Machines Disabled . | . . . . . . . . . . . . . . . . . . . . . Actions | -11 -10 -10 -9 -9 -6 -6 -5 -5 -5 -5 -5 -5 -4 -4 -4 -4 -4 -3 -3 -2 --------- Run | Yrd Mat Sub Rec Scr Fac DSF Fac Was Fac Upp Upp War Pro Fac Upp Upp Zhi Pro Res Res Total 11334 | 104 587 261 174 1577 379 272 112 199 521 528 347 1231 425 718 1558 480 163 524 792 382 Wait 970 | . 68 10 2 33 3 23 8 32 24 22 5 165 . 50 415 . . 19 83 8 Move 9487 | 73 467 231 142 1456 333 184 97 165 439 479 328 1008 399 546 1068 455 147 499 626 345 Hop 4 | . . . . . . . . . . . . . 1 . . . . . . 3 Pick Up 95 | 10 12 2 2 19 6 4 3 . 2 . 1 13 1 5 1 6 2 1 5 . Fast Attach 154 | 6 1 . 2 10 7 12 . 2 13 4 4 17 4 28 6 7 6 . 15 10 Attach 46 | 1 . . . 4 5 5 2 . 2 . 1 1 7 4 3 2 1 . 8 . Detach 3 | . . . . . . . . . . . . 2 . . . . . . 1 . Swap 31 | 2 4 4 3 . 1 4 . . . . . 4 1 3 3 . . . 2 . Drop 135 | 1 3 2 7 27 5 18 1 . 3 1 2 10 8 17 8 7 7 1 6 1 Fire 165 | 11 32 11 16 10 1 11 . . 1 . 1 2 . 1 4 3 . 4 43 14 Melee 214 | . . . . 18 8 8 1 . 37 22 5 9 4 64 38 . . . . . Ram 4 | . . . . . . . . . . . . . . . . . . . 3 1 Kick . | . . . . . . . . . . . . . . . . . . . . . Crush . | . . . . . . . . . . . . . . . . . . . . . Escape Stasis 11 | . . . . . 10 . . . . . . . . . 1 . . . . . Rewire 3 | . . . . . . 3 . . . . . . . . . . . . . . Trap 12 | . . 1 . . . . . . . . . . . . 11 . . . . . Miscellaneous . | . . . . . . . . . . . . . . . . . . . . . Route ------- -11/Scrapyard -10/Materials (discovered 5 exits: [*Mat x3] / [*Min] / [*Sub]) -10/Subcaves -9/Recycling (discovered 2 exits: Fac / *Scr) -9/Scraptown (discovered 2 exits: *Fac x2) -6/Factory -6/DSF -5/Factory -5/Waste -5/Factory (discovered 2 exits: *Upp x2) -5/Upper Caves -5/Upper Caves -5/Warlord -4/Proximity Caves -4/Factory (discovered 3 exits: *Upp x2 / Arm) -4/Upper Caves -4/Upper Caves -4/Zhirov -3/Proximity Caves -3/Research (discovered 5 exits: *Res x3 / Qua x2) -2/Research History --------- Turn | Location | Event 3 | -11/Scrapyard | Discovered new exit (range 15) 157 | -11/Scrapyard | Entered Materials 307 | -10/Materials | Build established: Mutant 336 | -10/Materials | Discovered new exit (range 10) 660 | -10/Materials | Discovered new exit (range 14) 1050 | -10/Materials | Discovered new exit (range 15) 1218 | -10/Materials | Discovered new exit (range 11) 1303 | -10/Materials | Discovered new exit (range 4) 1384 | -10/Materials | Entered Subcaves 1940 | -10/Subcaves | Discovered new exit (range 15) 1993 | -10/Subcaves | Entered Recycling 2167 | -9/Recycling | Identified exit to Factory 2325 | -9/Recycling | Scanned before Scraplab entrance 2361 | -9/Recycling | Entered Scraplab 2380 | -9/Recycling | Discovered new exit (range 2) 2385 | -9/Recycling | Entered Scraptown 2390 | -9/Scraptown | System corruption cleaned by C-Scrubber 2776 | -9/Scraptown | Visited Shadow of the Wyrm 3296 | -9/Scraptown | Scanned Subdweller tech in exchange for log data 3305 | -9/Scraptown | Learned Factory emergency access door positions 3344 | -9/Scraptown | Discovered new exit (range 13) 3699 | -9/Scraptown | Visited Cyclists 3737 | -9/Scraptown | Visited TADAMA 3828 | -9/Scraptown | Visited Bundlers 4103 | -9/Scraptown | Visited UFD Registry 4103 | -9/Scraptown | Registered with UFD as "Shorttail" 4191 | -9/Scraptown | Visited Curators Association 4244 | -9/Scraptown | Visited Science Guys 4376 | -9/Scraptown | Visited Sword Containment 4406 | -9/Scraptown | Found Prototype Slashing Weapon 4406 | -9/Scraptown | Identified Companion Sword 4469 | -9/Scraptown | Visited Research Penetration Think Tank 4527 | -9/Scraptown | Visited Science Testing Area 4563 | -9/Scraptown | Visited Scrap Suit Storage 4599 | -9/Scraptown | Visited LU-1G1's Boring Crew 4944 | -9/Scraptown | Visited Abandonware Association 4961 | -9/Scraptown | Learned abandonware demo "OVRCLOCK.EXE" 4968 | -9/Scraptown | Learned abandonware demo "ERRANTS.EXE" 4968 | -9/Scraptown | Learned abandonware demo "MELTYB.EXE" 5028 | -9/Scraptown | Visited Scrapoid Research Area 5081 | -9/Scraptown | Visited Scrapoid Pod Storage 5093 | -9/Scraptown | Found Scrapoid Pod 5257 | -9/Scraptown | Met Optimus 5257 | -9/Scraptown | Accepted into 0bPrime 5486 | -9/Scraptown | Civil war broke out across Scraptown 5505 | -9/Scraptown | Found Prototype Special Weapon 5561 | -9/Scraptown | Identified exit to Factory 5663 | -9/Scraptown | Found Master Drone Bay 5749 | -9/Scraptown | Found Surveybot 24 Chip 5773 | -9/Scraptown | Lost 3 allies 5782 | -9/Scraptown | Found Prototype Leg 5782 | -9/Scraptown | Identified Potential Leg 5886 | -9/Scraptown | Lost 6 allies 5933 | -9/Scraptown | Optimus destroyed in the chaos of civil war 5981 | -9/Scraptown | Core integrity fell below 50% 5991 | -9/Scraptown | Core integrity fell below 20% 6026 | -9/Scraptown | Lost 4 parts (1p2n1w) 6029 | -9/Scraptown | Entered Factory 6029 | -6/Factory | Evolved 8 slots: Power x1, Propulsion x3, Utility x4 6313 | -6/Factory | Build established: Scavenger-Mutant 6483 | -6/Factory | Identified exit to DSF 6483 | -6/Factory | Entered DSF 6533 | -6/DSF | Additional patrols routed to DSF 6758 | -6/DSF | Discovered new exit (range 15) 6768 | -6/DSF | Entered Factory 6768 | -5/Factory | Evolved 2 slots: Utility x2 6836 | -5/Factory | Sucked down chute 6836 | -5/Factory | Entered Waste 6849 | -5/Waste | Spotted C-40 Crusher 6852 | -5/Waste | Spotted C-40 Crusher 6854 | -5/Waste | Spotted C-40 Crusher 6862 | -5/Waste | Spotted C-40 Crusher 6863 | -5/Waste | Spotted C-40 Crusher 6871 | -5/Waste | Crushed by Compactor (1 part destroyed, 2 dropped) 6872 | -5/Waste | Identified LU-1G1's Laser Shovel 6918 | -5/Waste | Crushed by Compactor (1 part destroyed, 1 dropped) 6919 | -5/Waste | Crushed by Compactor (1 part destroyed, 2 dropped) 6948 | -5/Waste | Spotted C-40 Crusher 6950 | -5/Waste | Lost 3 parts (1p2u) 6959 | -5/Waste | Discovered new exit (range 11) 6972 | -5/Waste | Entered Factory 7231 | -5/Factory | Build established: Hacker-Mutant 7322 | -5/Factory | Identified exit to Upper Caves 7327 | -5/Factory | Lost 4 parts (1p1n2u) 7405 | -5/Factory | Entered Upper Caves 7636 | -5/Upper Caves | Attracted the attention of an 0b10 outpost 7713 | -5/Upper Caves | Core integrity fell below 50% 7754 | -5/Upper Caves | Lost 7 parts (2p2n2u1w) 7781 | -5/Upper Caves | Discovered new exit (range 9) 7787 | -5/Upper Caves | Entered another Upper Caves area 7855 | -5/Upper Caves | Learned 4 Factory zone layouts 7918 | -5/Upper Caves | Acquired the password to a Derelict Tinkerer's latest research 7922 | -5/Upper Caves | Found Prototype Special Weapon 8031 | -5/Upper Caves | Attacked by a delusional Derelict stockpiling parts 8051 | -5/Upper Caves | Discovered new exit (range 15) 8060 | -5/Upper Caves | Entered Warlord 8079 | -5/Warlord | Lost 7 parts (1p3n2u1w) 8311 | -5/Warlord | Build established: Mutant 8514 | -5/Warlord | Warlord's base attacked by MAIN.C 8545 | -5/Warlord | Found Prototype Energy Gun 8545 | -5/Warlord | Identified Vortex Rifle 8548 | -5/Warlord | Found Vortex Rifle 8677 | -5/Warlord | Found Prototype Processor 8677 | -5/Warlord | Identified Exp. Targeting Computer 8682 | -5/Warlord | Found Prototype Hackware 8682 | -5/Warlord | Identified Ghost Barrier 8687 | -5/Warlord | Found Prototype Processor 8687 | -5/Warlord | Identified Exp. Core Analyzer 8864 | -5/Warlord | Warlord forces counterattacked 8944 | -5/Warlord | Lost 4 allies 8955 | -5/Warlord | Spotted Striker 8987 | -5/Warlord | Spotted Striker 9005 | -5/Warlord | Spotted Executioner 9014 | -5/Warlord | Discovered new exit (range 14) 9022 | -5/Warlord | Entered Proximity Caves 9044 | -4/Proximity Caves | Core integrity fell below 20% 9048 | -4/Proximity Caves | Lost 21 allies 9116 | -4/Proximity Caves | Learned location of Testing (-2) 9160 | -4/Proximity Caves | Learned Research emergency access door positions 9161 | -4/Proximity Caves | Attracted the attention of an 0b10 checkpoint 9164 | -4/Proximity Caves | Discovered new exit (range 13) 9167 | -4/Proximity Caves | Entered Factory 9167 | -4/Factory | Evolved 2 slots: Propulsion x2 9168 | -4/Factory | Identified exit to Upper Caves 9168 | -4/Factory | Identified exit to Armory 9227 | -4/Factory | Spotted B-86 Titan 9327 | -4/Factory | Lost 8 parts (2p2n4u) 9430 | -4/Factory | Garrison activated, responded to threat 9644 | -4/Factory | Core integrity fell below 50% 9659 | -4/Factory | Entered Upper Caves 9900 | -4/Upper Caves | Build established: Hacker-Mutant 10103 | -4/Upper Caves | Attracted the attention of an 0b10 checkpoint 10178 | -4/Upper Caves | Spotted B-86 Titan 10656 | -4/Upper Caves | Build established: Mutant 10909 | -4/Upper Caves | Crushed by falling debris 10910 | -4/Upper Caves | System corruption reached 10% 10917 | -4/Upper Caves | Crushed by falling debris 10948 | -4/Upper Caves | Lost 3 parts (1p1u1w) 10963 | -4/Upper Caves | Discovered new exit (range 6) 10965 | -4/Upper Caves | Entered another Upper Caves area 11171 | -4/Upper Caves | Identified Molecular Deconstructor 11217 | -4/Upper Caves | Entered a destroyed Warlord outpost 11231 | -4/Upper Caves | Discovered new exit (range 10) 11236 | -4/Upper Caves | Entered Zhirov 11236 | -4/Zhirov | Discovered new exit (range 3) 11245 | -4/Zhirov | Met Zhirov 11259 | -4/Zhirov | Learned location of Quarantine (-3) 11259 | -4/Zhirov | Learned location of Command (-1) 11264 | -4/Zhirov | Zhirov requested help retrieving the SGEMP Prototype 11274 | -4/Zhirov | Found Alien Artifact 11274 | -4/Zhirov | Identified Integrated Reactor 11274 | -4/Zhirov | Installed Integrated Reactor, increased core energy generation (+10) 11302 | -4/Zhirov | Found Alien Artifact 11323 | -4/Zhirov | Entered Proximity Caves 11511 | -3/Proximity Caves | Spotter reported a threat 11549 | -3/Proximity Caves | Spotter reported a threat 11594 | -3/Proximity Caves | Discovered new exit (range 3) 11596 | -3/Proximity Caves | Entered Research 11596 | -3/Research | Evolved 2 slots: Utility x2 11602 | -3/Research | Identified exit to Quarantine 11798 | -3/Research | Repaired Imp. Heavy Armor Plating 11846 | -3/Research | Search patrols dispatched 11854 | -3/Research | Identified Transdimensional Reconstructor 11854 | -3/Research | Warped through subspace 11864 | -3/Research | Identified exit to Research 11897 | -3/Research | Garrison activated, responded to threat 11912 | -3/Research | Build established: Hacker-Mutant 12039 | -3/Research | System corruption reached 10% 12096 | -3/Research | Search patrols dispatched 12097 | -3/Research | Core integrity fell below 50% 12135 | -3/Research | Entered another Research area 12135 | -2/Research | Evolved 2 slots: Propulsion x2 12143 | -2/Research | Lost 11 parts (3p2n4u2w) 12225 | -2/Research | Spotted B-90 Cyclops 12259 | -2/Research | Lost 4 parts (2n1u1w) 12290 | -2/Research | Core integrity fell below 50% 12291 | -2/Research | Spotted B-90 Cyclops 12344 | -2/Research | Core integrity fell below 20% 12380 | -2/Research | Lost 12 parts (1p5n4u2w) 12397 | -2/Research | Destroyed by H-81 Overseer with Heavy Linear Accelerator Last Messages --------------- 12337_ Acquired Adv. Reaction Control System. 12339_ Imp. Gyrokinetic Inverter destroyed. 12340_ ALERT: Hostiles spotted, dispatching reinforcements to Terminal R008. 12346_ Penetrated by Slug. 12349_ Slug penetrates Wall. 12349_ Adv. Reaction Control System destroyed. 12355_ Triggered Shock Trap. 12355_ The floor emits a surge of raw power. 12355_ System corrupted (+2). 12364_ Penetrated by Slug. 12364_ Slug penetrates Wall. 12370_ System corrupted: Heat flow error (+223). 12374_ Acquired Nuclear Pulse Array. 12376_ Dropped Imp. Gyrokinetic Inverter. 12379_ W-44 Eye sends out distress signal. 12385_ W-44 Eye destroyed. 12390_ U-05 Engineer works on Meson Extractor. 12391_ K-01 Serf collects debris. 12395_ Knocked back. Map ----- +----------------------------------------------------+ | ?????????????????????????????????????????????????? | | ?????????????????????????????????????????????????? | | ?????????????????????????????????????????????????? | | ?????????????????????????????????????????????????? | | ?????????????????????????????????????????????????? | | ?????????????????????????????????????????????????? | | ?????????????????????????????????????????????????? | | ?????????????????????????????????????????????????? | | ?????????????????????????????????????????????????? | | ?????????????????????????????????????????????????? | | ?????????????????????????????????????????????????? | | ?????????????????????????????????????????????????? | | ?????????????????????????????????????????????????? | | ?????????????????????????????????????????????????? | | ?????????????????????????????????????????????????? | | ??????????????###+##?????????????????????????????? | | ????????????? ????????????????????????????? | | ????????????? ????????????????????????????? | | ???????????? ???????????????????????????? | | ???????????? ??????????????? ??????????? | | ???????????? ]]]???????????? ??????????? | | ????????????" ]]]?????????? #?????????? | | ????????????" ]]]####???? #?????????? | | ???????????"" k #?? #?????????? | | ?????????? t R # #?????????? | | ?????????? % @/ kt #?????????? | | ?????????? A # #?????????? | | ?????????????############ #?? [ +?????????? | | ?????????????????######?# #???? #?????????? | | ?????????????????# ?# #?????? #?????????? | | ?????????????????# ! # #???????? ??????????? | | ?????????????????# #%###############????????? | | ?????????????????# + A + #????????# | | ?????????????????# # ##### #????????# | | ?????????????????# # #???# " #????????# | | ?????????????????######?# #???# #????????# | | ???????????????????????? ???# #????????# | | ???????????????????????? ???# #?????? # | | ???????????????????????? H ???+ #???? # | | ???????????????????????? ???# ! #?? # | | ???????????????????????? ???########+## + | | ????????????????????????###?????????# + """ # | | ????????????????????????????????????# ## """ # | | ????????????????????????????????????# #??? """ ?# | | ????????????????????????????????????# ########### | | ????????????????????????????????##### % | | ?????????????????????????????# = | | ?????????????????????????????# ########### | | ?????????????????????????? ## # | | ?????????????????????????! ## # | +----------------------------------------------------+ Best States ------------- Heat Dissipation 81 Coolant Potential 50 Energy Generation 53 Energy Capacity 580 Matter Stores 300 Matter Capacity 800 Sight Range 16 Terrain Scan Range 18 Terrain Scan Density 10 ECM Strength 1 Jamming Range 14 Cloak Strength 2 Armor Coverage 1275 Resistance: EM 25 Power Shielding 66 Propulsion Shielding 66 Evasion (%) 70 Targeting Accuracy 12 Melee Accuracy 10 Target Analysis 8 Core Analysis 8 Recoil Reduction 2 Energy Filtering 30 Force Boost 30 Salvage Targeting 4 Offensive Hacking 37 Defensive Hacking 31 Authchip Count 1 Trap Extractor Capacity 8 Item Schematics ----------------- Huge Storage Unit | -10/Materials | Hacked Assault Drone Bay | -4/Zhirov | Free Exp. Heat Sink | -4/Zhirov | Free Exp. Optical Array | -4/Zhirov | Free Imp. Arc Thrower | -4/Zhirov | Free Cmb. Linear Gravjet | -3/Research | Hacked Robot Schematics ------------------ None Fabricated ------------ Nothing Repaired ---------- Imp. Heavy Armor Plating | 26% | -3/Research Studied --------- None Alien Tech Used ----------------- Integrated Reactor Transdimensional Reconstructor Achievements -------------- None Challenges ------------ None Game ------ Seed SmartHardlightRailcannon Manual? 0 Play Time 02:16:37 Cumulative 468.4 hours Start 2026.09.14 @ 05:15:53 End 2026.09.15 @ 17:01:38 Sessions 6 Manual Loads 0 Difficulty Rogue Special Mode None Game No. 227 Rogue 227 Adventurer 0 Explorer 0 Win Type - Total 16 Types 9/1/1/1/1/0/1/1/0/1 Lore% 71 Gallery% 75 Achievement% 69 Wizard Run 0 Options --------- Layout 1 ASCII 0 Keyboard 0 Movement Mouse Keybinds 0 Fullscreen 1 Font 18/SmallcapsGlow Map View 54x44 Zoom Use 0% Tactical HUD 1 Map Filters NONE Filters NONE Steam 0 RUN: 609186ca-1141-4eed-b00e-541ada89ca71